fUSD/lending_fUSD_20250211
["ID","MTS","AMOUNT","RATE_DAILY","PERIOD"]
[352685510,1739241043942,-508.13,0.00010958,2]
[352685511,1739241043951,-509.43,0.00010958,2]
[352685512,1739241043960,-500.0,0.00010958,2]
[352685513,1739241043969,-536.02,0.00010958,2]
[352685514,1739241043978,-686.84,0.00010958,2]
[352685515,1739241043987,-500.0,0.00010958,2]
[352685516,1739241043996,-836.01,0.00010958,2]
[352685517,1739241044005,-768.7,0.00010958,2]
[352685518,1739241044015,-1196.61,0.00010958,2]
[352685519,1739241044024,-500.0,0.00010958,2]
[352685520,1739241044033,-500.0,0.00010958,2]
[352685521,1739241044042,-1726.7,0.00010958,2]
[352685522,1739241044051,-576.91,0.00010958,2]
[352685523,1739241044060,-787.31,0.00010958,2]
[352685524,1739241044071,-500.0,0.00010958,2]
[352685525,1739241044081,-600.74,0.00010958,2]
[352685526,1739241044091,-500.0,0.00010958,2]
[352685527,1739241044100,-500.0,0.00010958,2]
[352685528,1739241044109,-500.0,0.00010958,2]
[352685529,1739241044118,-728.9,0.00010958,2]
[352685530,1739241044127,-1013.16,0.00010958,2]
[352685531,1739241044136,-500.0,0.00010958,2]
[352685532,1739241044145,-645.18,0.00010958,2]
[352685533,1739241044155,-555.49,0.00010958,2]
[352685534,1739241044164,-500.19,0.00010958,2]
[352685535,1739241044173,-672.49,0.00010958,2]
[352685536,1739241044183,-1117.37,0.00010958,2]
[352685537,1739241044192,-1193.86,0.00010958,2]
[352685538,1739241044202,-825.62,0.00010958,2]
[352685539,1739241044213,-500.0,0.00010958,2]
[352685540,1739241044222,-595.2,0.00010958,2]
[352685541,1739241044232,-500.0,0.00010958,2]
[352685542,1739241044241,-791.59,0.00010958,2]
[352685543,1739241044251,-680.89,0.00010958,2]
[352685544,1739241044260,-752.42,0.00010958,2]
[352685545,1739241044270,-500.0,0.00010958,2]
[352685546,1739241044279,-792.2,0.00010958,2]
[352685547,1739241044288,-799.43,0.00010958,2]
[352685548,1739241044297,-634.71,0.00010958,2]
[352685549,1739241044306,-1290.28,0.00010958,2]
[352685550,1739241044315,-1512.56,0.00010958,2]
[352685551,1739241044324,-622.02407602,0.00010958,2]
[352685552,1739241044337,-252.24592398,0.00010958,2]
[352685553,1739241044347,-76.03112154,0.00010958,2]
[352685554,1739241044359,-585.0919994,0.00010958,2]
[352685555,1739241044370,-460.54687906,0.00010958,2]
[352685556,1739241044379,-500.0,0.00010958,2]
[352685557,1739241044578,-500.0,0.00010958,2]
[352685558,1739241044588,-500.0,0.00010958,2]
[352685559,1739241044597,-500.0,0.00010958,2]
[352685560,1739241044606,-500.0,0.00010958,2]
[352685561,1739241044615,-651.88,0.00010958,2]
[352685562,1739241044626,-509.64,0.00010958,2]
[352685563,1739241044635,-500.0,0.00010958,2]
[352685564,1739241044645,-500.0,0.00010958,2]
[352685565,1739241044654,-846.4,0.00010958,2]
[352685566,1739241044663,-2122.19,0.00010958,2]
[352685567,1739241044673,-500.0,0.00010958,2]
[352685568,1739241044682,-752.33,0.00010958,2]
[352685569,1739241044691,-500.0,0.00010958,2]
[352685570,1739241044700,-400.0,0.00010958,2]
[352685571,1739241044710,-500.0,0.00010958,2]
[352685572,1739241044719,-825.64,0.00010958,2]
[352685573,1739241044729,-500.0,0.00010958,2]
[352685574,1739241044738,-553.5,0.00010958,2]
[352685575,1739241044747,-1795.82,0.00010958,2]
[352685576,1739241044757,-500.0,0.00010958,2]
[352685577,1739241044766,-500.0,0.00010958,2]
[352685578,1739241044775,-793.35,0.00010958,2]
[352685579,1739241044784,-500.0,0.00010958,2]
[352685580,1739241044793,-500.0,0.00010958,2]
[352685581,1739241044802,-609.5,0.00010958,2]
[352685582,1739241044812,-1531.51,0.00010958,2]
[352685583,1739241044823,-627.58,0.00010958,2]
[352685584,1739241044832,-1025.36,0.00010958,2]
[352685585,1739241044841,-1118.02,0.00010958,2]
[352685586,1739241044850,-597.42,0.00010958,2]
[352685587,1739241044859,-596.64,0.00010958,2]
[352685588,1739241044869,-1208.79,0.00010958,2]
[352685589,1739241044878,-1039.72,0.00010958,2]
[352685590,1739241044888,-500.0,0.00010958,2]
[352685591,1739241044897,-500.0,0.00010958,2]
[352685592,1739241044906,-673.58,0.00010958,2]
[352685593,1739241044916,-2221.24,0.00010958,2]
[352685594,1739241044925,-1549.52,0.00010958,2]
[352685595,1739241044934,-658.21,0.00010958,2]
[352685596,1739241044943,-527.33,0.00010958,2]
[352685597,1739241044953,-1247.35,0.00010958,2]
[352685598,1739241044963,-966.03,0.00010958,2]
[352685599,1739241044972,-2091.25,0.00010958,2]
[352685600,1739241044981,-1424.37,0.00010958,2]
[352685601,1739241044990,-500.0,0.00010958,2]
[352685602,1739241044999,-835.96,0.00010958,2]
[352685603,1739241045009,-792.49,0.00010958,2]
[352685604,1739241045018,-502.80870115,0.00010958,2]
[352685605,1739241045028,-749.35,0.00010958,2]
[352685606,1739241045037,-1084.32,0.00010958,2]
[352685607,1739241045046,-1544.19,0.00010958,2]
[352685608,1739241045056,-1315.5,0.00010958,2]
[352685609,1739241045066,-917.07,0.00010958,2]
[352685610,1739241045076,-1231.27,0.00010958,2]
[352685611,1739241045085,-1649.96,0.00010958,2]
[352685612,1739241045095,-500.0,0.00010958,2]
[352685613,1739241045104,-155.43123794,0.00010958,2]
[352685614,1739241045113,-2436.99,0.00010958,2]
[352685615,1739241045123,-1521.64,0.00010958,2]
[352685616,1739241045132,-618.82,0.00010958,2]
[352685617,1739241045141,-1142.78,0.00010958,2]
[352685618,1739241045151,-1242.14,0.00010958,2]
[352685619,1739241045160,-500.0,0.00010958,2]
[352685620,1739241045170,-1940.68,0.00010958,2]
[352685621,1739241045179,-2120.0,0.00010958,2]
[352685622,1739241045188,-500.0,0.00010958,2]
[352685623,1739241045198,-500.0,0.00010958,2]
[352685624,1739241045207,-999.9,0.00010958,2]
[352685625,1739241045216,-651.75,0.00010958,2]
[352685626,1739241045225,-500.0,0.00010958,2]
[352685627,1739241045235,-500.0,0.00010958,2]
[352685628,1739241045244,-1110.09,0.00010958,2]
[352685629,1739241045253,-936.05,0.00010958,2]
[352685630,1739241045263,-911.25,0.00010958,2]
[352685631,1739241045273,-500.0,0.00010958,2]
[352685632,1739241045283,-883.33,0.00010958,2]
[352685633,1739241045292,-1412.92,0.00010958,2]
[352685634,1739241045302,-2063.6,0.00010958,2]
[352685635,1739241045312,-1378.47,0.00010958,2]
[352685636,1739241045323,-500.0,0.00010958,2]
[352685637,1739241045333,-500.0,0.00010958,2]
[352685639,1739241045343,-500.0,0.00010958,2]
[352685640,1739241045353,-500.0,0.00010958,2]
[352685641,1739241045362,-500.0,0.00010958,2]
[352685642,1739241045372,-500.0,0.00010958,2]
[352685643,1739241045383,-2243.63,0.00010958,2]
[352685644,1739241045393,-500.0,0.00010958,2]
[352685645,1739241045403,-267.8892001,0.00010958,2]
[352685646,1739241045413,-500.0,0.00010958,2]
[352685647,1739241045422,-1612.23,0.00010958,2]
[352685648,1739241045431,-500.0,0.00010958,2]
[352685649,1739241045440,-628.06,0.00010958,2]
[352685650,1739241045450,-500.0,0.00010958,2]
[352685651,1739241045460,-1426.99,0.00010958,2]
[352685652,1739241045473,-2160.41,0.00010958,2]
[352685653,1739241045483,-856.68,0.00010958,2]
[352685654,1739241045492,-1312.6,0.00010958,2]
[352685655,1739241045501,-518.76,0.00010958,2]
[352685656,1739241045511,-500.0,0.00010958,2]
[352685657,1739241045520,-500.0,0.00010958,2]
[352685658,1739241045529,-728.19,0.00010958,2]
[352685659,1739241045538,-399.05515597,0.00010958,2]
[352685660,1739241045549,-807.92,0.00010958,2]
[352685661,1739241045559,-886.09,0.00010958,2]
[352685662,1739241045570,-504.37709718,0.00010958,2]
[352685663,1739241045579,-1018.04,0.00010958,2]
[352685664,1739241045589,-500.0,0.00010958,2]
[352685665,1739241045598,-842.14,0.00010958,2]
[352685666,1739241045608,-500.0,0.00010958,2]
[352685667,1739241045618,-504.93417879,0.00010958,2]
[352685668,1739241045628,-261.2698244,0.00010958,2]
[352685669,1739241045638,-199.4,0.00010958,2]
[352685670,1739241045647,-517.41,0.00010958,2]
[352685671,1739241045657,-492.73,0.00010958,2]
[352685672,1739241045667,-1155.663,0.00011,2]
[352685673,1739241045677,-37142.8567283,0.00011,2]
[352685674,1739241045687,-1000.0,0.00011065,2]
[352685675,1739241045696,-504.9190676,0.00011094,2]
[352685676,1739241045706,-500.0,0.00011094,2]
[352685677,1739241045715,-500.0,0.00011094,2]
[352685678,1739241045724,-500.0,0.00011094,2]
[352685679,1739241045734,-500.0,0.00011094,2]
[352685680,1739241045744,-500.0,0.00011094,2]
[352685681,1739241045754,-500.0,0.00011094,2]
[352685682,1739241045763,-500.0,0.00011094,2]
[352685683,1739241045772,-500.0,0.00011094,2]
[352685684,1739241045782,-500.0,0.00011094,2]
[352685685,1739241045792,-500.0,0.00011094,2]
[352685686,1739241045801,-500.0,0.00011094,2]
[352685687,1739241045811,-500.0,0.00011094,2]
[352685688,1739241045824,-500.0,0.00011094,2]
[352685689,1739241045834,-500.0,0.00011094,2]
[352685690,1739241045843,-500.0,0.00011094,2]
[352685691,1739241045853,-500.0,0.00011094,2]
[352685692,1739241045862,-500.0,0.00011094,2]
[352685693,1739241045872,-500.0,0.00011094,2]
[352685694,1739241045881,-503.22465283,0.00011094,2]
[352685695,1739241045892,-500.0,0.00011094,2]
[352685696,1739241045902,-505.71573866,0.00011094,2]
[352685697,1739241045911,-500.0,0.00011094,2]
[352685698,1739241045921,-505.98220756,0.00011094,2]
[352685699,1739241045930,-500.0,0.00011094,2]
[352685700,1739241045940,-500.0,0.00011094,2]
[352685702,1739241045950,-509.07394264,0.00011094,2]
[352685704,1739241045959,-500.0,0.00011094,2]
[352685706,1739241045969,-500.0,0.00011094,2]
[352685708,1739241045979,-500.0,0.00011094,2]
[352685710,1739241045989,-500.0,0.00011094,2]
[352685712,1739241045998,-500.0,0.00011094,2]
[352685714,1739241046008,-508.10784011,0.00011094,2]
[352685717,1739241046018,-504.00474884,0.00011094,2]
[352685718,1739241046028,-500.0,0.00011094,2]
[352685720,1739241046037,-500.0,0.00011094,2]
[352685722,1739241046047,-500.0,0.00011094,2]
[352685724,1739241046056,-500.0,0.00011094,2]
[352685726,1739241046066,-503.7591482,0.00011094,2]
[352685728,1739241046075,-500.0,0.00011094,2]
[352685730,1739241046085,-500.0,0.00011094,2]
[352685731,1739241046095,-276.20072251,0.00011094,2]
[352685732,1739241046104,-500.0,0.00011094,2]
[352685733,1739241046114,-500.0,0.00011094,2]
[352685734,1739241046123,-500.0,0.00011094,2]
[352685735,1739241046132,-500.0,0.00011094,2]
[352685736,1739241046141,-500.0,0.00011094,2]
[352685737,1739241046150,-500.0,0.00011094,2]
[352685738,1739241046160,-500.0,0.00011094,2]
[352685739,1739241046169,-500.0,0.00011094,2]
[352685741,1739241046179,-500.0,0.00011094,2]
[352685743,1739241046189,-503.6086975,0.00011094,2]
[352685745,1739241046199,-500.0,0.00011094,2]
[352685747,1739241046209,-500.0,0.00011094,2]
[352685749,1739241046218,-500.0,0.00011094,2]
[352685751,1739241046228,-500.0,0.00011094,2]
[352685753,1739241046238,-500.0,0.00011094,2]
[352685755,1739241046247,-429.2637425,0.00011094,2]
[352685757,1739241046257,-505.85958215,0.00011094,2]
[352685759,1739241046266,-505.33133955,0.00011094,2]
[352685761,1739241046275,-500.0,0.00011094,2]
[352685763,1739241046285,-503.78473185,0.00011094,2]
[352685765,1739241046294,-503.2067217,0.00011094,2]
[352685767,1739241046303,-500.0,0.00011094,2]
[352685769,1739241046312,-504.00198696,0.00011094,2]
[352685771,1739241046323,-500.0,0.00011094,2]
[352685773,1739241046334,-500.0,0.00011094,2]
[352685776,1739241046345,-500.0,0.00011094,2]
[352685778,1739241046354,-500.0,0.00011094,2]
[352685780,1739241046363,-500.0,0.00011094,2]
[352685782,1739241046373,-500.0,0.00011094,2]
[352685784,1739241046382,-500.0,0.00011094,2]
[352685786,1739241046391,-500.0,0.00011094,2]
[352685788,1739241046400,-502.94417702,0.00011094,2]
[352685789,1739241046408,-500.0,0.00011094,2]
[352685791,1739241046418,-502.7491463,0.00011094,2]
[352685794,1739241046427,-500.0,0.00011094,2]
[352685796,1739241046437,-506.20267852,0.00011094,2]
[352685798,1739241046447,-500.0,0.00011094,2]
[352685800,1739241046456,-500.0,0.00011094,2]
[352685802,1739241046468,-500.0,0.00011094,2]
[352685804,1739241046478,-500.0,0.00011094,2]
[352685806,1739241046487,-500.0,0.00011094,2]
[352685808,1739241046496,-500.0,0.00011094,2]
[352685810,1739241046507,-500.0,0.00011094,2]
[352685812,1739241046516,-500.0,0.00011094,2]
[352685814,1739241046526,-500.0,0.00011094,2]
[352685816,1739241046536,-500.0,0.00011094,2]
[352685818,1739241046546,-500.0,0.00011094,2]
[352685820,1739241046555,-500.0,0.00011094,2]
[352685822,1739241046565,-500.0,0.00011094,2]
[352685824,1739241046574,-500.0,0.00011094,2]
[352685826,1739241046584,-500.0,0.00011094,2]
[352685828,1739241046593,-500.0,0.00011094,2]
[352685830,1739241046602,-535.93,0.00011094,2]
[352685832,1739241046612,-500.0,0.00011094,2]
[352685834,1739241046622,-242.04993941,0.00011094,2]
[352685836,1739241046632,-500.0,0.00011094,2]
[352685837,1739241046642,-506.0868096,0.00011094,2]
[352685839,1739241046651,-532.55539992,0.00011094,2]
[352685841,1739241046660,-454.83088544,0.00011094,2]
[352685843,1739241046669,-224.36246835,0.00011094,2]
[352685845,1739241046679,-500.0,0.00011094,2]
[352685848,1739241046689,-500.0,0.00011094,2]
[352685850,1739241046701,-500.0,0.00011094,2]
[352685852,1739241046711,-500.0,0.00011094,2]
[352685854,1739241046720,-500.0,0.00011094,2]
[352685856,1739241046730,-500.0,0.00011094,2]
[352685858,1739241046741,-500.0,0.00011094,2]
[352685860,1739241046750,-500.0,0.00011094,2]
[352685862,1739241046760,-500.0,0.00011094,2]
[352685864,1739241046769,-500.0,0.00011094,2]
[352685866,1739241046779,-500.0,0.00011094,2]
[352685868,1739241046789,-500.0,0.00011094,2]
[352685870,1739241046798,-505.73095588,0.00011094,2]
[352685872,1739241046808,-503.39860726,0.00011094,2]
[352685874,1739241046818,-500.0,0.00011094,2]
[352685876,1739241046827,-500.0,0.00011094,2]
[352685878,1739241046836,-618.65943981,0.00011094,2]
[352685880,1739241046845,-500.0,0.00011094,2]
[352685882,1739241046855,-500.0,0.00011094,2]
[352685884,1739241046864,-500.0,0.00011094,2]
[352685886,1739241046874,-500.0,0.00011094,2]
[352685888,1739241046883,-500.0,0.00011094,2]
[352685890,1739241046893,-500.0,0.00011094,2]
[352685898,1739241046958,-500.0,0.00011094,2]
[352685900,1739241046968,-282.97696991,0.00011094,2]
[352685902,1739241046977,-500.0,0.00011094,2]
[352685904,1739241046986,-500.0,0.00011094,2]
[352685906,1739241046995,-500.0,0.00011094,2]
[352685908,1739241047004,-500.0,0.00011094,2]
[352685910,1739241047013,-500.0,0.00011094,2]
[352685912,1739241047023,-500.0,0.00011094,2]
[352685914,1739241047033,-500.0,0.00011094,2]
[352685916,1739241047044,-500.0,0.00011094,2]
[352685918,1739241047054,-601.85514606,0.00011094,2]
[352685920,1739241047064,-500.0,0.00011094,2]
[352685922,1739241047075,-506.02653289,0.00011094,2]
[352685924,1739241047084,-519.75306551,0.00011094,2]
[352685926,1739241047095,-507.12716445,0.00011094,2]
[352685928,1739241047104,-500.0,0.00011094,2]
[352685930,1739241047114,-526.55,0.00011094,2]
[352685932,1739241047124,-669.36,0.00011094,2]
[352685934,1739241047135,-500.0,0.00011094,2]
[352685936,1739241047146,-500.0,0.00011094,2]
[352685938,1739241047155,-500.0,0.00011094,2]
[352685940,1739241047167,-500.0,0.00011094,2]
[352685942,1739241047177,-513.67693712,0.00011094,2]
[352685944,1739241047187,-507.81169966,0.00011094,2]
[352685946,1739241047197,-500.0,0.00011094,2]
[352685948,1739241047207,-500.0,0.00011094,2]
[352685950,1739241047217,-500.0,0.00011094,2]
[352685952,1739241047227,-500.0,0.00011094,2]
[352685954,1739241047237,-500.0,0.00011094,2]
[352685956,1739241047247,-500.0,0.00011094,2]
[352685958,1739241047256,-614.86,0.00011094,2]
[352685960,1739241047265,-507.63847671,0.00011094,2]
[352685961,1739241047275,-500.0,0.00011094,2]
[352685962,1739241047284,-500.0,0.00011094,2]
[352685963,1739241047294,-500.0,0.00011094,2]
[352685964,1739241047303,-500.0,0.00011094,2]
[352685965,1739241047312,-526.7,0.00011094,2]
[352685966,1739241047323,-500.0,0.00011094,2]
[352685967,1739241047332,-500.0,0.00011094,2]
[352685969,1739241047341,-500.0,0.00011094,2]
[352685971,1739241047350,-543.91,0.00011094,2]
[352685973,1739241047360,-500.0,0.00011094,2]
[352685975,1739241047369,-500.0,0.00011094,2]
[352685977,1739241047378,-189.97726562,0.00011094,2]
[352685979,1739241047388,-504.86061358,0.00011094,2]
[352685981,1739241047397,-500.0,0.00011094,2]
[352685983,1739241047406,-500.0,0.00011094,2]
[352685985,1739241047415,-500.0,0.00011094,2]
[352685987,1739241047424,-500.0,0.00011094,2]
[352685989,1739241047434,-500.0,0.00011094,2]
[352685991,1739241047443,-500.0,0.00011094,2]
[352685993,1739241047452,-500.0,0.00011094,2]
[352685995,1739241047462,-500.0,0.00011094,2]
[352685997,1739241047475,-500.0,0.00011094,2]
[352685999,1739241047485,-504.56119182,0.00011094,2]
[352686001,1739241047494,-500.0,0.00011094,2]
[352686003,1739241047503,-500.0,0.00011094,2]
[352686005,1739241047512,-500.0,0.00011094,2]
[352686007,1739241047522,-500.0,0.00011094,2]
[352686009,1739241047531,-500.0,0.00011094,2]
[352686011,1739241047541,-500.0,0.00011094,2]
[352686013,1739241047553,-619.82158455,0.00011094,2]
[352686015,1739241047563,-564.5,0.00011094,2]
[352686017,1739241047573,-500.0,0.00011094,2]
[352686019,1739241047582,-504.60136731,0.00011094,2]
[352686021,1739241047592,-500.0,0.00011094,2]
[352686023,1739241047601,-500.0,0.00011094,2]
[352686025,1739241047610,-500.0,0.00011094,2]
[352686027,1739241047619,-500.0,0.00011094,2]
[352686029,1739241047628,-500.0,0.00011094,2]
[352686031,1739241047637,-500.0,0.00011094,2]
[352686033,1739241047647,-500.0,0.00011094,2]
[352686035,1739241047656,-500.0,0.00011094,2]
[352686037,1739241047665,-354.59296734,0.00011094,2]
[352686039,1739241047675,-556.98165232,0.00011094,2]
[352686041,1739241047684,-505.19088532,0.00011094,2]
[352686043,1739241047692,-504.071431,0.00011094,2]
[352686045,1739241047702,-500.0,0.00011094,2]
[352686047,1739241047710,-500.0,0.00011094,2]
[352686049,1739241047720,-500.0,0.00011094,2]
[352686051,1739241047729,-500.0,0.00011094,2]
[352686053,1739241047739,-500.0,0.00011094,2]
[352686055,1739241047748,-500.0,0.00011094,2]
[352686057,1739241047757,-500.0,0.00011094,2]
[352686059,1739241047767,-500.0,0.00011094,2]
[352686061,1739241047776,-500.0,0.00011094,2]
[352686063,1739241047785,-501.86175699,0.00011094,2]
[352686065,1739241047794,-500.0,0.00011094,2]
[352686067,1739241047804,-500.0,0.00011094,2]
[352686069,1739241047812,-500.0,0.00011094,2]
[352686071,1739241047822,-500.0,0.00011094,2]
[352686073,1739241047831,-500.0,0.00011094,2]
[352686075,1739241047840,-500.0,0.00011094,2]
[352686077,1739241047850,-2571.57,0.00011094,2]
[352686079,1739241047858,-500.0,0.00011094,2]
[352686080,1739241047867,-500.0,0.00011094,2]
[352686082,1739241047877,-500.0,0.00011094,2]
[352686085,1739241047886,-500.0,0.00011094,2]
[352686086,1739241047896,-500.0,0.00011094,2]
[352686089,1739241047906,-500.0,0.00011094,2]
[352686090,1739241047916,-500.0,0.00011094,2]
[352686092,1739241047926,-1065.79,0.00011094,2]
[352686094,1739241047936,-500.0,0.00011094,2]
[352686097,1739241047946,-745.93,0.00011094,2]
[352686098,1739241047957,-500.0,0.00011094,2]
[352686100,1739241047965,-500.0,0.00011094,2]
[352686102,1739241047975,-500.0,0.00011094,2]
[352686104,1739241047984,-503.86646333,0.00011094,2]
[352686106,1739241047993,-500.0,0.00011094,2]
[352686108,1739241048002,-500.0,0.00011094,2]
[352686110,1739241048011,-835.06,0.00011094,2]
[352686112,1739241048021,-506.05535513,0.00011094,2]
[352686114,1739241048031,-557.07,0.00011094,2]
[352686116,1739241048040,-504.33749094,0.00011094,2]
[352686118,1739241048050,-500.0,0.00011094,2]
[352686120,1739241048060,-520.19172596,0.00011094,2]
[352686122,1739241048071,-504.92770379,0.00011094,2]
[352686124,1739241048081,-500.0,0.00011094,2]
[352686126,1739241048090,-501.64282992,0.00011094,2]
[352686128,1739241048100,-500.0,0.00011094,2]
[352686130,1739241048110,-500.0,0.00011094,2]
[352686132,1739241048120,-983.24,0.00011094,2]
[352686134,1739241048130,-500.0,0.00011094,2]
[352686136,1739241048140,-2404.23,0.00011094,2]
[352686138,1739241048151,-500.0,0.00011094,2]
[352686140,1739241048163,-500.0,0.00011094,2]
[352686142,1739241048174,-500.0,0.00011094,2]
[352686144,1739241048183,-500.0,0.00011094,2]
[352686146,1739241048194,-500.0,0.00011094,2]
[352686148,1739241048204,-1237.64,0.00011094,2]
[352686150,1739241048215,-500.0,0.00011094,2]
[352686152,1739241048225,-500.0,0.00011094,2]
[352686154,1739241048235,-500.0,0.00011094,2]
[352686156,1739241048245,-500.0,0.00011094,2]
[352686158,1739241048255,-500.0,0.00011094,2]
[352686160,1739241048266,-500.0,0.00011094,2]
[352686162,1739241048276,-500.0,0.00011094,2]
[352686164,1739241048286,-504.28523729,0.00011094,2]
[352686166,1739241048295,-504.39680621,0.00011094,2]
[352686168,1739241048305,-1184.89,0.00011094,2]
[352686170,1739241048315,-500.0,0.00011094,2]
[352686172,1739241048326,-500.0,0.00011094,2]
[352686174,1739241048336,-500.0,0.00011094,2]
[352686175,1739241048346,-504.56440985,0.00011094,2]
[352686177,1739241048356,-1169.49,0.00011094,2]
[352686179,1739241048366,-610.24,0.00011094,2]
[352686180,1739241048377,-500.0,0.00011094,2]
[352686181,1739241048387,-500.0,0.00011094,2]
[352686182,1739241048397,-500.0,0.00011094,2]
[352686183,1739241048407,-501.8156729,0.00011094,2]
[352686184,1739241048417,-1214.72,0.00011094,2]
[352686185,1739241048428,-504.37693989,0.00011094,2]
[352686187,1739241048438,-500.60630467,0.00011094,2]
[352686189,1739241048449,-500.0,0.00011094,2]
[352686191,1739241048459,-503.29398652,0.00011094,2]
[352686193,1739241048471,-500.0,0.00011094,2]
[352686195,1739241048481,-2713.34,0.00011094,2]
[352686197,1739241048491,-500.0,0.00011094,2]
[352686199,1739241048502,-500.0,0.00011094,2]
[352686201,1739241048512,-500.0,0.00011094,2]
[352686203,1739241048522,-500.0,0.00011094,2]
[352686205,1739241048532,-4056.17,0.00011094,2]
[352686207,1739241048542,-500.0,0.00011094,2]
[352686209,1739241048553,-502.23762367,0.00011094,2]
[352686211,1739241048563,-754.05,0.00011094,2]
[352686213,1739241048575,-500.0,0.00011094,2]
[352686215,1739241048585,-509.12743263,0.00011094,2]
[352686216,1739241048594,-502.70325222,0.00011094,2]
[352686218,1739241048604,-500.0,0.00011094,2]
[352686220,1739241048615,-500.0,0.00011094,2]
[352686222,1739241048624,-500.0,0.00011094,2]
[352686224,1739241048633,-1088.51,0.00011094,2]
[352686226,1739241048643,-500.0,0.00011094,2]
[352686228,1739241048653,-500.0,0.00011094,2]
[352686230,1739241048663,-500.0,0.00011094,2]
[352686232,1739241048672,-505.70644568,0.00011094,2]
[352686234,1739241048682,-978.0,0.00011094,2]
[352686236,1739241048692,-500.0,0.00011094,2]
[352686238,1739241048702,-500.0,0.00011094,2]
[352686240,1739241048711,-500.0,0.00011094,2]
[352686242,1739241048720,-252.77961722,0.00011094,2]
[352686244,1739241048730,-528.55075351,0.00011094,2]
[352686246,1739241048740,-502.13064991,0.00011094,2]
[352686248,1739241048751,-500.0,0.00011094,2]
[352686250,1739241048761,-504.07697552,0.00011094,2]
[352686252,1739241048771,-421.72808189,0.00011094,2]
[352686254,1739241048782,-500.0,0.00011094,2]
[352686256,1739241048792,-302.87062963,0.00011094,2]
[352686258,1739241048802,-501.60840067,0.00011094,2]
[352686260,1739241048810,-726.59,0.00011094,2]
[352686262,1739241048821,-500.0,0.00011094,2]
[352686264,1739241048831,-500.0,0.00011094,2]
[352686266,1739241048841,-500.0,0.00011094,2]
[352686268,1739241048851,-500.0,0.00011094,2]
[352686270,1739241048861,-1861.43,0.00011094,2]
[352686272,1739241048871,-507.32742226,0.00011094,2]
[352686274,1739241048881,-500.0,0.00011094,2]
[352686276,1739241048891,-500.0,0.00011094,2]
[352686278,1739241048901,-500.72164468,0.00011094,2]
[352686280,1739241048911,-501.46116718,0.00011094,2]
[352686282,1739241048921,-500.0,0.00011094,2]
[352686284,1739241048930,-527.87,0.00011094,2]
[352686285,1739241048940,-500.0,0.00011094,2]
[352686286,1739241048949,-500.0,0.00011094,2]
[352686288,1739241048959,-500.0,0.00011094,2]
[352686290,1739241048970,-501.75389703,0.00011094,2]
[352686291,1739241048980,-500.0,0.00011095,2]
[352686293,1739241048990,-500.0,0.00011095,2]
[352686294,1739241049001,-502.9225238,0.00011095,2]
[352686296,1739241049011,-501.20683622,0.00011095,2]
[352686297,1739241049021,-512.98066892,0.00011095,2]